bitfinex-derivatives/quotes_BTCF0:USTF0_20210703
["timestamp","ask_amount","ask_price","bid_price","bid_amount"]
[1625280080050,0.48115088,33564.0,33563.0,0.0069085]
[1625280080154,0.48115088,33564.0,33563.0,0.0659085]
[1625280080500,0.48115088,33564.0,33563.0,0.0069085]
[1625280081000,0.48115088,33564.0,33563.0,0.0659085]
[1625280081101,0.48115088,33564.0,33563.0,0.0069085]
[1625280082501,0.53815088,33564.0,33563.0,0.0069085]
[1625280082601,5.53275088,33564.0,33563.0,0.0069085]
[1625280082753,0.53815088,33564.0,33563.0,0.0069085]
[1625280082954,0.48115088,33564.0,33563.0,0.24748394]
[1625280083557,0.48115088,33564.0,33563.0,0.55115394]
[1625280083657,0.53815088,33564.0,33563.0,0.55115394]
[1625280086265,0.78989088,33564.0,33563.0,0.24748394]
[1625280086818,0.73089088,33564.0,33563.0,0.24748394]
[1625280087018,0.78989088,33564.0,33563.0,0.24748394]
[1625280087219,0.78989088,33564.0,33563.0,0.0069085]
[1625280087320,0.84889088,33564.0,33563.0,0.0069085]
[1625280087719,0.84889088,33564.0,33560.0,0.0069093]
[1625280088822,3.7489,33561.0,33560.0,0.0069093]
[1625280088971,3.8649,33561.0,33560.0,0.0069093]
[1625280089472,3.8649,33561.0,33557.0,0.00690991]
[1625280090872,3.8649,33561.0,33556.0,9.91e-06]
[1625280091025,0.69718088,33557.0,33556.0,9.91e-06]
[1625280091124,0.87218088,33557.0,33556.0,9.91e-06]
[1625280092976,1.11275632,33557.0,33556.0,9.91e-06]
[1625280101691,1.05375632,33557.0,33556.0,9.91e-06]
[1625280101841,1.11275632,33557.0,33556.0,9.91e-06]
[1625280104448,1.05375632,33557.0,33556.0,9.91e-06]
[1625280105400,0.83772632,33557.0,33556.0,0.29249991]
[1625280105601,0.77872632,33557.0,33556.0,0.29249991]
[1625280105702,0.77872632,33557.0,33556.0,0.29939664]
[1625280107202,5.24502632,33557.0,33556.0,0.29939664]
[1625280110260,5.24502632,33557.0,33556.0,0.00690664]
[1625280110560,5.24502632,33557.0,33556.0,9.91e-06]
[1625280110759,5.24502632,33557.0,33556.0,0.00690789]
[1625280111112,5.24502632,33557.0,33556.0,9.91e-06]
[1625280111314,5.24502632,33557.0,33556.0,0.00690791]
[1625280111612,5.24502632,33557.0,33556.0,9.91e-06]
[1625280111812,5.24502632,33557.0,33556.0,0.00689896]
[1625280112112,5.24502632,33557.0,33556.0,9.91e-06]
[1625280114869,5.61672632,33557.0,33556.0,9.91e-06]
[1625280117221,5.67572632,33557.0,33556.0,9.91e-06]
[1625280122234,6.89014616,33557.0,33556.0,9.91e-06]
[1625280123385,5.67572632,33557.0,33556.0,9.91e-06]
[1625280123836,6.89099828,33557.0,33556.0,9.91e-06]
[1625280124236,8.27991158,33557.0,33556.0,9.91e-06]
[1625280124638,6.89099828,33557.0,33556.0,9.91e-06]
[1625280125742,8.28038051,33557.0,33556.0,9.91e-06]
[1625280127544,8.28038051,33557.0,33550.0,0.00689168]
[1625280127793,1.21606279,33555.0,33550.0,0.00689168]
[1625280127893,0.057,33554.0,33550.0,0.00689168]
[1625280128093,0.116,33554.0,33550.0,0.00689168]
[1625280129247,0.48115088,33551.0,33550.0,0.00689168]
[1625280129346,0.59715088,33551.0,33550.0,0.00689168]
[1625280129496,0.59715088,33551.0,33549.0,0.00689192]
[1625280129598,4.96508,33550.0,33549.0,0.00689192]
[1625280129698,5.08108,33550.0,33549.0,0.00689192]
[1625280130049,6.29201364,33550.0,33547.0,0.00689235]
[1625280130248,6.29201364,33550.0,33549.0,0.00689233]
[1625280130548,6.29201364,33550.0,33546.0,0.00689317]
[1625280131250,0.24057544,33547.0,33546.0,0.00689317]
[1625280131352,0.35657544,33547.0,33546.0,0.00689317]
[1625280132101,0.35657544,33547.0,33545.0,0.00689377]
[1625280132401,0.35657544,33547.0,33546.0,0.00689377]
[1625280132651,0.35657544,33547.0,33545.0,0.00689375]
[1625280138118,0.35657544,33547.0,33545.0,0.7088419]
[1625280138418,0.29957544,33547.0,33546.0,0.00689353]
[1625280138518,0.29957544,33547.0,33546.0,0.27748353]
[1625280139020,0.29957544,33547.0,33546.0,0.97941055]
[1625280139119,0.24057544,33547.0,33546.0,0.97941055]
[1625280139220,0.24057544,33547.0,33546.0,1.03841055]
[1625280139421,0.24057544,33547.0,33546.0,3.31955164]
[1625280139670,0.24057544,33547.0,33546.0,8.51045164]
[1625280140420,0.24057544,33547.0,33546.0,3.31955164]
[1625280140572,0.24057544,33547.0,33546.0,4.73710555]
[1625280140875,0.24057544,33547.0,33546.0,4.72355328]
[1625280140975,4.41637544,33547.0,33546.0,4.72355328]
[1625280141625,0.24057544,33547.0,33546.0,4.72355328]
[1625280142132,0.24057544,33547.0,33546.0,4.737106]
[1625280142431,0.24057544,33547.0,33546.0,4.72355328]
[1625280142784,0.24057544,33547.0,33546.0,3.31955164]
[1625280143281,0.24057544,33547.0,33546.0,3.56012708]
[1625280143482,0.24057544,33547.0,33546.0,3.57368008]
[1625280143935,0.24057544,33547.0,33546.0,4.97919196]
[1625280144084,0.24057544,33547.0,33546.0,5.03819196]
[1625280144785,0.24057544,33547.0,33546.0,4.97919196]
[1625280144988,0.24057544,33547.0,33546.0,5.03819196]
[1625280146039,0.24057544,33547.0,33546.0,6.62038907]
[1625280146238,0.24057544,33547.0,33546.0,6.59994254]
[1625280146488,0.24057544,33547.0,33546.0,6.62038623]
[1625280146591,0.24057544,33547.0,33546.0,6.56138623]
[1625280146689,0.24057544,33547.0,33546.0,6.62038623]
[1625280146790,0.24057544,33547.0,33546.0,6.56138623]
[1625280147591,0.24057544,33547.0,33546.0,4.97918912]
[1625280148293,4.54217544,33547.0,33546.0,4.97918912]
[1625280148393,4.54217544,33547.0,33546.0,4.92018912]
[1625280148394,4.78356544,33547.0,33546.0,4.92018912]
[1625280149097,4.84056544,33547.0,33546.0,4.40902368]
[1625280149194,4.84056544,33547.0,33546.0,4.3954724]
[1625280149295,4.89956544,33547.0,33546.0,4.3954724]
[1625280149495,4.89956544,33547.0,33546.0,1.76165378]
[1625280150299,6.11111673,33547.0,33546.0,0.70881943]
[1625280150753,7.49499359,33547.0,33546.0,0.00689241]
[1625280151002,7.49499359,33547.0,33545.0,0.00689458]
[1625280151401,0.24057544,33546.0,33545.0,0.71062774]
[1625280151503,0.35657544,33546.0,33545.0,0.71062774]
[1625280151853,1.56682738,33546.0,33545.0,0.00689458]
[1625280153552,2.94876976,33546.0,33545.0,0.00689458]
[1625280153903,2.94876976,33546.0,33544.0,0.00689338]
[1625280154456,1.38146734,33545.0,33542.0,0.00689328]
[1625280154555,0.057,33544.0,33542.0,0.76927383]
[1625280154658,0.116,33544.0,33542.0,0.76927383]
[1625280154955,0.116,33544.0,33543.0,0.00689323]
[1625280155058,1.32528285,33544.0,33543.0,0.71027144]
[1625280155556,0.116,33544.0,33543.0,0.00689323]
[1625280156208,1.3247344,33544.0,33543.0,0.00689323]
[1625280156561,1.3247344,33544.0,33542.0,0.00689335]
[1625280156660,1.3247344,33544.0,33542.0,0.06589335]
[1625280157110,1.3247344,33544.0,33543.0,0.00689328]
[1625280157662,1.3247344,33544.0,33542.0,0.71009396]
[1625280157761,1.3247344,33544.0,33542.0,0.76909396]
[1625280157861,1.3247344,33544.0,33543.0,0.00689328]
[1625280158263,1.3247344,33544.0,33543.0,0.06589328]
[1625280158363,1.2677344,33544.0,33543.0,0.06589328]
[1625280159265,1.3247344,33544.0,33543.0,0.06589328]
[1625280159366,1.2677344,33544.0,33543.0,0.06589328]
[1625280159568,0.059,33544.0,33543.0,0.06589328]
[1625280159719,0.116,33544.0,33543.0,0.06589328]
[1625280160167,1.3252446,33544.0,33543.0,0.03139328]
[1625280162122,1.3252446,33544.0,33542.0,0.52714879]
[1625280162221,1.2682446,33544.0,33542.0,0.52714879]
[1625280162323,0.059,33544.0,33542.0,0.52714879]
[1625280162872,1.20803471,33545.0,33542.0,0.52714879]
[1625280162972,0.059,33544.0,33542.0,0.52714879]
[1625280163122,1.20803471,33545.0,33542.0,0.52714879]
[1625280163273,1.26703471,33545.0,33542.0,0.52714879]
[1625280163476,0.057,33544.0,33543.0,1.22980426]
[1625280163675,0.116,33544.0,33543.0,1.22980426]
[1625280163877,0.116,33544.0,33543.0,0.52705897]
[1625280164178,0.116,33544.0,33542.0,1.22977639]
[1625280166135,0.116,33544.0,33538.0,0.24057544]
[1625280166234,0.116,33544.0,33538.0,0.29957544]
[1625280166482,0.116,33544.0,33543.0,0.527068]
[1625280166782,0.059,33544.0,33543.0,0.527068]
[1625280166883,0.059,33544.0,33543.0,0.53394899]
[1625280167033,0.059,33544.0,33543.0,0.00688099]
[1625280167836,1.20692305,33545.0,33543.0,0.00688099]
[1625280167937,1.26592305,33545.0,33543.0,0.00688099]
[1625280168037,0.059,33545.0,33543.0,1.2369885]
[1625280168438,0.059,33545.0,33544.0,0.00688086]
[1625280168540,0.059,33545.0,33544.0,0.53406275]
[1625280168889,0.059,33545.0,33544.0,1.23694665]
[1625280169839,0.059,33545.0,33544.0,2.2915617]
[1625280170390,0.059,33545.0,33544.0,1.23694665]
[1625280170740,0.48115088,33546.0,33544.0,1.23694665]
[1625280170841,0.059,33545.0,33544.0,1.23694665]
[1625280170941,0.059,33545.0,33544.0,2.29161722]
[1625280171091,0.48115088,33546.0,33545.0,0.00687815]
[1625280171292,0.54015088,33546.0,33545.0,0.00687815]
[1625280171593,0.54015088,33546.0,33545.0,1.23729996]
[1625280171896,0.48115088,33546.0,33545.0,1.23729996]
[1625280171993,0.54015088,33546.0,33545.0,1.23729996]
[1625280172545,0.48115088,33546.0,33545.0,1.23729996]
[1625280172645,0.54015088,33546.0,33545.0,1.23729996]
[1625280173448,1.74908863,33546.0,33545.0,1.23729996]
[1625280174097,1.74908863,33546.0,33545.0,0.70997633]
[1625280174197,3.13036773,33546.0,33545.0,0.00687815]
[1625280174397,3.18736773,33546.0,33545.0,0.00687815]
[1625280174497,3.13036773,33546.0,33545.0,0.00687815]
[1625280175501,3.18736773,33546.0,33545.0,0.00687815]
[1625280176605,3.13036773,33546.0,33545.0,0.00687815]
[1625280177409,3.13036773,33546.0,33545.0,0.53479638]
[1625280177911,1.74908863,33546.0,33545.0,1.2387045]
[1625280178462,5.51768863,33546.0,33545.0,1.2387045]
[1625280178817,6.89999702,33546.0,33545.0,1.2387045]
[1625280178913,6.95699702,33546.0,33545.0,1.2387045]
[1625280179065,6.89999702,33546.0,33545.0,1.2387045]
[1625280179316,6.89999702,33546.0,33545.0,0.53479638]
[1625280179717,6.89999702,33546.0,33545.0,1.23880559]
[1625280179818,3.13139702,33546.0,33545.0,1.252217]
[1625280180118,1.74908863,33546.0,33545.0,2.30819622]
[1625280180617,1.80608863,33546.0,33545.0,2.29478481]
[1625280181470,3.18801974,33546.0,33545.0,0.00687815]
[1625280184430,3.40413974,33546.0,33545.0,0.00687815]
[1625280186940,3.40413974,33546.0,33544.0,0.0068788]
[1625280187190,3.40413974,33546.0,33545.0,0.0068788]
[1625280187342,0.81327088,33546.0,33545.0,0.0068788]
[1625280187442,0.59715088,33546.0,33544.0,0.0068788]
[1625280187792,0.59715088,33546.0,33544.0,0.53505557]
[1625280188196,0.59715088,33546.0,33545.0,0.0068788]
[1625280188496,3.18704342,33546.0,33545.0,0.0068788]
[1625280188896,3.13004342,33546.0,33545.0,0.0068788]
[1625280188996,3.07104342,33546.0,33545.0,0.0068788]
[1625280189197,3.13004342,33546.0,33545.0,0.0068788]
[1625280189299,3.07104342,33546.0,33545.0,0.0068788]
[1625280189551,3.07104342,33546.0,33545.0,0.78907486]
[1625280189651,3.07104342,33546.0,33545.0,0.84807486]
[1625280189849,3.07104342,33546.0,33545.0,0.90707486]
[1625280189950,2.58989254,33546.0,33545.0,0.90707486]
[1625280190100,1.20880146,33548.0,33545.0,3.89993931]
[1625280190351,1.20880146,33548.0,33546.0,0.02028361]
[1625280190451,1.20880146,33548.0,33546.0,0.13828361]
[1625280190851,1.20880146,33548.0,33546.0,4.00208361]
[1625280190953,0.24057544,33549.0,33547.0,3.54085857]
[1625280191203,0.24057544,33549.0,33547.0,3.65885857]
[1625280191502,0.24057544,33549.0,33548.0,0.0202902]
[1625280191602,0.24057544,33549.0,33548.0,0.37886564]
[1625280191802,0.24057544,33549.0,33548.0,3.89864431]
[1625280193907,0.24057544,33549.0,33548.0,3.88523182]
[1625280197210,0.24057544,33549.0,33548.0,3.82623182]
[1625280198865,0.24057544,33549.0,33548.0,3.76723182]
[1625280198965,0.24057544,33549.0,33548.0,3.82623182]
[1625280199165,0.24057544,33549.0,33548.0,3.76723182]
[1625280201969,0.52172544,33549.0,33548.0,3.76723182]
[1625280202071,5.21932544,33549.0,33548.0,3.76723182]
[1625280202268,5.27632544,33549.0,33548.0,3.76723182]
[1625280202368,5.33532544,33549.0,33548.0,3.76723182]
[1625280202920,5.33532544,33549.0,33548.0,0.77541995]
[1625280203519,5.33532544,33549.0,33548.0,0.53484451]
[1625280203722,5.81647632,33549.0,33548.0,0.53484451]
[1625280203920,5.81647632,33549.0,33548.0,0.00687771]
[1625280204019,1.05987632,33549.0,33548.0,0.00687771]
[1625280204322,1.05987632,33549.0,33546.0,0.00687977]
[1625280204972,2.61017444,33549.0,33546.0,0.00687977]
[1625280205371,2.61017444,33549.0,33545.0,0.00687981]
[1625280205522,1.37766924,33547.0,33545.0,0.00687981]
[1625280205622,0.057,33546.0,33545.0,0.00687981]
[1625280205822,0.116,33546.0,33545.0,0.00687981]
[1625280205972,1.49428164,33546.0,33545.0,0.35880468]
[1625280206322,1.49428164,33546.0,33545.0,0.00687981]
[1625280206622,1.49428164,33546.0,33545.0,0.35881167]
[1625280207526,1.49428164,33546.0,33545.0,0.00687981]
[1625280208175,1.49428164,33546.0,33545.0,0.35885362]
[1625280209981,1.49428164,33546.0,33545.0,0.00687981]
[1625280212490,1.43728164,33546.0,33545.0,0.00687981]
[1625280212639,1.43728164,33546.0,33545.0,0.28460981]
[1625280212739,1.37828164,33546.0,33545.0,0.28460981]
[1625280213242,1.37828164,33546.0,33545.0,0.81256259]
[1625280213795,2.34111722,33549.0,33545.0,2.57220928]
[1625280213896,2.40011722,33549.0,33545.0,2.57220928]
[1625280214194,2.40011722,33549.0,33546.0,0.00688006]
[1625280214494,2.40011722,33549.0,33548.0,0.35192931]
[1625280214747,2.40011722,33549.0,33548.0,0.3588094]
[1625280215352,2.45711722,33549.0,33548.0,0.3588094]
[1625280215650,2.45711722,33549.0,33548.0,0.00688009]
[1625280216051,2.45711722,33549.0,33547.0,0.0068804]
[1625280216150,4.24874944,33549.0,33547.0,0.0068804]
[1625280216751,1.37790247,33548.0,33546.0,0.00688055]
[1625280216950,1.37790247,33548.0,33545.0,0.35195476]
[1625280217201,1.37790247,33548.0,33547.0,0.52791473]
[1625280217300,1.37790247,33548.0,33547.0,0.72050473]
[1625280217503,1.37790247,33548.0,33547.0,0.72738455]
[1625280217851,0.059,33548.0,33547.0,2.4870252]
[1625280217951,1.01930176,33549.0,33547.0,2.4870252]
[1625280218052,0.059,33548.0,33547.0,2.4870252]
[1625280218254,0.059,33548.0,33547.0,0.54453056]
[1625280218255,1.43775334,33548.0,33547.0,0.54453056]
[1625280218354,1.49475334,33548.0,33547.0,0.35194056]
[1625280218553,1.49475334,33548.0,33547.0,0.35882081]
[1625280218655,1.49475334,33548.0,33547.0,0.00688025]
[1625280219056,5.34965334,33548.0,33547.0,0.00688025]
[1625280219306,5.29065334,33548.0,33547.0,0.00688025]
[1625280219406,5.34965334,33548.0,33547.0,0.00688025]
[1625280219557,5.40865334,33548.0,33547.0,0.00688025]
[1625280219705,1.55375334,33548.0,33547.0,0.00688025]
[1625280219857,1.55375334,33548.0,33546.0,0.00688036]
[1625280220360,1.37810652,33547.0,33546.0,0.35884558]
[1625280220458,1.49610652,33547.0,33546.0,0.35884558]
[1625280220559,5.89120652,33547.0,33546.0,0.35884558]
[1625280220710,5.89120652,33547.0,33546.0,0.88682248]
[1625280220811,1.49610652,33547.0,33546.0,0.88682248]
[1625280221211,1.49610652,33547.0,33546.0,0.53483848]
[1625280221212,1.79200652,33547.0,33546.0,0.53483848]
[1625280221762,1.79200652,33547.0,33546.0,0.49963848]
[1625280221965,1.79200652,33547.0,33545.0,0.17599605]
[1625280222064,1.79200652,33547.0,33545.0,0.11179605]
[1625280222516,1.37659483,33546.0,33542.0,0.52800752]
[1625280222618,0.057,33545.0,33542.0,0.52800752]
[1625280222717,0.116,33545.0,33542.0,0.52800752]
[1625280222815,0.116,33545.0,33543.0,0.00683017]
[1625280223467,1.37565629,33544.0,33543.0,0.00683017]
[1625280223567,6.27235629,33544.0,33542.0,0.00683023]
[1625280223817,0.48115088,33543.0,33542.0,0.00683023]
[1625280223919,1.97209936,33543.0,33542.0,0.00683023]
[1625280224018,1.97209936,33543.0,33542.0,3.023e-05]
[1625280224369,1.97209936,33543.0,33541.0,0.00681847]
[1625280224618,1.97209936,33543.0,33540.0,0.00681845]
[1625280225322,1.37312961,33541.0,33540.0,0.00681845]
[1625280225470,1.43012961,33541.0,33540.0,0.00681845]
[1625280225570,1.48912961,33541.0,33540.0,0.00681845]
[1625280225674,1.48912961,33541.0,33539.0,0.0068185]
[1625280227471,1.37138614,33540.0,33539.0,0.0068185]
[1625280227573,1.68141614,33540.0,33539.0,0.0068185]
[1625280227875,1.92199158,33540.0,33539.0,0.0068185]
[1625280228625,1.92199158,33540.0,33538.0,0.00681868]
[1625280228877,1.92199158,33540.0,33539.0,0.00681865]
[1625280229376,1.92199158,33540.0,33538.0,0.00681871]
[1625280230275,0.35657544,33540.0,33538.0,0.00681871]
[1625280230776,0.29957544,33540.0,33538.0,0.53443315]
[1625280230978,0.29957544,33540.0,33538.0,0.59343315]
[1625280231078,0.24057544,33540.0,33538.0,0.65243315]
[1625280231230,0.24057544,33540.0,33539.0,3.5238606]
[1625280231327,0.24057544,33540.0,33539.0,9.1217506]
[1625280231477,0.24057544,33540.0,33539.0,3.7999506]
[1625280231578,0.24057544,33540.0,33539.0,2.56898553]
[1625280231828,0.24057544,33540.0,33539.0,2.80956097]
[1625280231928,0.24057544,33540.0,33539.0,2.80274343]
[1625280236384,0.24057544,33540.0,33539.0,4.03350435]
[1625280236735,0.24057544,33540.0,33539.0,2.80274343]
[1625280238541,0.24057544,33540.0,33539.0,2.86174343]
[1625280238641,0.24057544,33540.0,33539.0,2.80274343]
[1625280238892,0.24057544,33540.0,33539.0,4.03354065]
[1625280239294,0.24057544,33540.0,33539.0,2.80274343]
[1625280242649,0.24057544,33540.0,33539.0,2.86174343]
[1625280243051,0.24057544,33540.0,33539.0,4.09253071]
[1625280243352,0.24057544,33540.0,33539.0,4.03353071]
[1625280243452,1.37262974,33546.0,33539.0,4.09253071]
[1625280243552,1.37262974,33546.0,33539.0,2.92074343]
[1625280243801,1.60080742,33549.0,33545.0,1.23061206]
[1625280243802,1.4307675,33549.0,33545.0,1.23061206]
[1625280243901,1.4307675,33549.0,33548.0,0.24057544]
[1625280244151,1.3737675,33549.0,33548.0,0.50116544]
[1625280244301,2.54136698,33553.0,33548.0,0.56697803]
[1625280244302,1.37415242,33550.0,33548.0,0.56697803]
[1625280244554,1.37415242,33550.0,33549.0,0.00681246]
[1625280244653,2.54136698,33553.0,33549.0,0.00681246]
[1625280244654,1.61544016,33551.0,33549.0,0.06581246]
[1625280245053,1.61544016,33551.0,33550.0,0.00681216]
[1625280245155,0.24057544,33551.0,33550.0,0.06581216]
[1625280246756,0.24057544,33551.0,33550.0,0.59311843]
[1625280247808,0.24057544,33551.0,33550.0,0.06581216]
[1625280248108,0.24057544,33551.0,33550.0,0.00681216]
[1625280249113,0.24057544,33551.0,33549.0,0.00681222]
[1625280249312,0.24057544,33551.0,33550.0,0.00681218]
[1625280249865,0.24057544,33551.0,33549.0,0.00681206]
[1625280250068,0.057,33550.0,33549.0,0.00681206]
[1625280251217,0.057,33550.0,33549.0,0.09470713]
[1625280253023,0.057,33550.0,33549.0,0.00681206]
[1625280255377,1.61695284,33551.0,33549.0,0.00681206]
[1625280255477,1.61695284,33551.0,33549.0,0.26314206]
[1625280255578,1.61695284,33551.0,33549.0,0.32214206]
[1625280255681,1.61695284,33551.0,33549.0,0.84975669]
[1625280255781,1.61695284,33551.0,33550.0,0.00681048]
[1625280255929,1.61695284,33551.0,33550.0,0.06581048]
[1625280256232,0.24057544,33551.0,33550.0,0.59342037]
[1625280256984,0.24057544,33551.0,33550.0,0.65242037]
[1625280257285,0.24057544,33551.0,33550.0,1.35604594]
[1625280258135,0.24057544,33551.0,33550.0,1.29704594]
[1625280258287,0.24057544,33551.0,33550.0,1.35604594]
[1625280258435,0.24057544,33551.0,33550.0,1.29704594]
[1625280262802,0.24057544,33551.0,33550.0,0.59342037]
[1625280262900,0.24057544,33551.0,33550.0,0.53442037]
[1625280263309,1.62196157,33551.0,33550.0,0.65242037]
[1625280263656,1.38138613,33551.0,33550.0,0.65242037]
[1625280263756,1.62276432,33554.0,33553.0,4.2268]
[1625280263861,1.62276432,33554.0,33553.0,4.2858]
[1625280264005,1.62276432,33554.0,33553.0,4.58537544]
[1625280264210,1.62276432,33554.0,33553.0,4.59218511]
[1625280264359,0.24057544,33554.0,33553.0,8.11050035]
[1625280264459,1.38318145,33557.0,33553.0,8.11050035]
[1625280264907,1.3831103,33559.0,33556.0,1.23085519]
[1625280265007,1.3831103,33559.0,33556.0,1.51458519]
[1625280265107,1.3831103,33559.0,33556.0,1.57358519]
[1625280265308,1.3831103,33559.0,33557.0,0.00680925]
[1625280265409,1.38325125,33560.0,33558.0,0.52745915]
[1625280265559,1.38325125,33560.0,33558.0,0.64545915]
[1625280265759,1.38325125,33560.0,33559.0,0.00680927]
[1625280265861,1.38325125,33560.0,33559.0,0.09471943]
[1625280265961,1.38325125,33560.0,33559.0,0.69387031]
[1625280266712,1.38312414,33561.0,33559.0,0.69387031]
[1625280267062,1.38312414,33561.0,33560.0,0.00680872]
[1625280267415,1.38312414,33561.0,33560.0,0.06580872]
[1625280267517,1.38312414,33561.0,33560.0,0.00680872]
[1625280269723,1.38312414,33561.0,33560.0,0.06580872]
[1625280269824,1.38320202,33562.0,33560.0,0.06580872]
[1625280270172,1.38320202,33562.0,33561.0,0.00680845]
[1625280270723,1.38320202,33562.0,33560.0,0.00680848]
[1625280270873,1.44020202,33562.0,33560.0,0.06580848]
[1625280270975,0.057,33562.0,33560.0,0.06580848]
[1625280271324,0.057,33562.0,33561.0,0.00680879]
[1625280271726,1.38285347,33563.0,33561.0,0.00680879]
[1625280271826,1.38285347,33563.0,33560.0,0.00680881]
[1625280271926,1.38285347,33563.0,33560.0,0.06580881]
[1625280272030,1.38285347,33563.0,33560.0,0.00680881]
[1625280272330,1.38285347,33563.0,33561.0,0.00680867]
[1625280272432,1.38285347,33563.0,33561.0,0.06580867]
[1625280272532,1.38309119,33564.0,33561.0,0.06580867]
[1625280272632,1.38309119,33564.0,33560.0,0.00681162]
[1625280272732,1.38309119,33564.0,33561.0,0.059]
[1625280272881,1.38309119,33564.0,33562.0,0.00681162]
[1625280272983,1.38309119,33564.0,33562.0,0.06581162]
[1625280273087,1.38309119,33564.0,33562.0,0.12481162]
[1625280273185,1.38309119,33564.0,33562.0,0.118]
[1625280273384,1.38340021,33565.0,33563.0,0.00681115]
[1625280273486,1.38340021,33565.0,33563.0,0.23276115]
[1625280273585,1.38340021,33565.0,33563.0,5.22816115]
[1625280273834,2.61900301,33568.0,33563.0,5.31590215]
[1625280273934,2.61900301,33568.0,33564.0,0.00681091]
[1625280274085,2.37842757,33568.0,33567.0,0.48115088]
[1625280274185,2.37842757,33568.0,33567.0,0.54015088]
[1625280274487,2.37842757,33568.0,33567.0,0.54696181]
[1625280274836,2.43542757,33568.0,33567.0,0.54696181]
[1625280275137,1.0509,33568.0,33567.0,0.54696181]
[1625280275387,2.43428064,33568.0,33567.0,0.54696181]
[1625280276087,2.37728064,33568.0,33567.0,0.54696181]
[1625280276937,0.9939,33568.0,33567.0,0.54696181]
[1625280277139,0.9939,33568.0,33567.0,0.48796181]
[1625280277240,1.0509,33568.0,33567.0,0.48796181]
[1625280277640,2.43240261,33568.0,33567.0,0.48796181]
[1625280277890,2.49140261,33568.0,33567.0,0.48796181]
[1625280279042,7.70650261,33568.0,33567.0,0.48796181]
[1625280279845,7.70650261,33568.0,33567.0,0.48115088]
[1625280279994,7.70650261,33568.0,33559.0,0.56877143]
[1625280279995,7.76550261,33568.0,33559.0,0.56877143]
[1625280280097,0.24057544,33560.0,33559.0,0.48115088]
[1625280280196,0.57320544,33560.0,33559.0,0.48115088]
[1625280280345,0.69120544,33560.0,33559.0,0.48796296]
[1625280282301,2.06711523,33560.0,33559.0,0.48796296]
[1625280282999,2.00811523,33560.0,33559.0,0.48796296]
[1625280284355,2.06711523,33560.0,33559.0,0.48796296]
[1625280284555,2.00811523,33560.0,33559.0,0.48796296]
[1625280284908,0.63220544,33560.0,33559.0,0.48796296]
[1625280285757,0.69120544,33560.0,33559.0,0.48796296]
[1625280286360,2.06649195,33560.0,33559.0,0.48796296]
[1625280288612,2.00749195,33560.0,33559.0,0.48796296]
[1625280288713,2.06649195,33560.0,33559.0,0.48796296]
[1625280289213,2.00749195,33560.0,33559.0,0.48796296]
[1625280290116,2.06649195,33560.0,33559.0,0.48796296]
[1625280292872,6.10959195,33560.0,33559.0,0.48796296]
[1625280294125,6.05059195,33560.0,33559.0,0.48796296]
[1625280294376,2.00749195,33560.0,33559.0,0.48796296]
[1625280294527,1.94849195,33560.0,33559.0,0.48796296]
[1625280295328,0.57320544,33560.0,33559.0,0.48796296]
[1625280295431,0.29757544,33560.0,33559.0,0.48796296]
[1625280296178,0.35657544,33560.0,33559.0,0.48796296]
[1625280296480,0.35657544,33560.0,33559.0,0.54696296]
[1625280298282,0.35657544,33560.0,33559.0,0.48796296]
[1625280298382,0.41557544,33560.0,33559.0,0.48796296]
[1625280298583,1.79309664,33560.0,33559.0,0.48796296]
[1625280298834,1.73409664,33560.0,33559.0,0.48796296]
[1625280298935,1.79309664,33560.0,33559.0,0.48796296]
[1625280299034,1.73409664,33560.0,33559.0,0.48796296]
[1625280301690,1.79309664,33560.0,33559.0,0.48796296]
[1625280301791,1.73409664,33560.0,33559.0,0.48796296]
[1625280302693,1.79309664,33560.0,33559.0,0.48796296]
[1625280302944,1.73409664,33560.0,33559.0,0.48796296]
[1625280303345,1.67709664,33560.0,33559.0,0.48796296]
[1625280304250,1.4365212,33560.0,33559.0,0.57588421]
[1625280304698,1.4935212,33560.0,33559.0,0.57588421]
[1625280305198,1.4935212,33560.0,33559.0,0.48796296]
[1625280306154,1.4935212,33560.0,33559.0,0.57589091]
[1625280307756,1.4935212,33560.0,33559.0,0.48796296]
[1625280307857,1.5525212,33560.0,33559.0,0.48796296]
[1625280307957,1.4935212,33560.0,33559.0,0.48796296]
[1625280308160,1.73409664,33560.0,33559.0,0.48796296]
[1625280308308,1.79309664,33560.0,33559.0,0.48796296]
[1625280308457,1.73409664,33560.0,33559.0,0.48796296]
[1625280309657,1.79309664,33560.0,33559.0,0.48796296]
[1625280313063,6.01199664,33560.0,33559.0,0.48796296]
[1625280315015,6.01199664,33560.0,33559.0,0.57596286]
[1625280315419,1.79309664,33560.0,33559.0,0.57596286]
[1625280316070,1.73409664,33560.0,33559.0,0.57596286]
[1625280319374,1.79309664,33560.0,33559.0,0.57596286]
[1625280319927,3.34991813,33560.0,33559.0,0.57596286]
[1625280323136,3.34991813,33560.0,33559.0,0.09481198]
[1625280323636,6.97481813,33560.0,33559.0,0.09481198]
[1625280323886,6.98543256,33560.0,33559.0,0.09481198]
[1625280323988,8.71416156,33560.0,33559.0,0.00681208]
[1625280324237,8.954737,33560.0,33559.0,0.00681208]
[1625280324441,8.954737,33560.0,33556.0,0.00681523]
[1625280324638,0.01061538,33559.0,33556.0,0.00681523]
[1625280324740,2.936292,33557.0,33556.0,0.00681523]
[1625280324838,3.329492,33557.0,33556.0,0.00681523]
[1625280325187,3.34010726,33557.0,33552.0,0.00681548]
[1625280325439,3.329492,33557.0,33552.0,0.00681548]
[1625280325541,2.93600979,33553.0,33552.0,0.00681548]
[1625280325640,6.90680979,33553.0,33552.0,0.00681548]
[1625280325741,7.02480979,33553.0,33552.0,0.00681548]
[1625280326291,7.50596067,33553.0,33552.0,0.00681548]
[1625280326791,7.50596067,33553.0,33551.0,0.00681559]
[1625280327342,2.93456243,33552.0,33551.0,0.00681559]
[1625280327450,3.05056243,33552.0,33551.0,0.00681559]
[1625280328244,3.05056243,33552.0,33549.0,0.00681624]
[1625280328544,3.10956243,33552.0,33551.0,0.00681629]
[1625280328744,3.10956243,33552.0,33550.0,0.00681626]
[1625280328846,0.175,33552.0,33550.0,0.00681626]
[1625280329044,0.175,33552.0,33549.0,0.0068161]
[1625280329245,2.93073829,33551.0,33549.0,0.0068161]
[1625280329346,0.40597,33550.0,33549.0,0.0068161]
[1625280329445,0.46497,33550.0,33549.0,0.0068161]
[1625280329595,3.39585976,33550.0,33549.0,0.0068161]
[1625280330698,1.84422238,33550.0,33549.0,0.0068161]
[1625280333304,3.39523451,33550.0,33549.0,0.0068161]
[1625280335407,3.39523451,33550.0,33548.0,0.24057544]
[1625280336260,2.92795207,33549.0,33548.0,0.24057544]
[1625280336407,3.34352751,33549.0,33548.0,0.24057544]
[1625280336709,3.34352751,33549.0,33548.0,0.24739208]
[1625280337513,3.34352751,33549.0,33548.0,0.24057544]
[1625280339968,3.34352751,33549.0,33543.0,0.08790404]
[1625280340319,0.24057544,33544.0,33543.0,0.08790404]
[1625280340419,5.62367544,33544.0,33543.0,0.08790404]